Cogmind - Beta 16.1 @@@ ROGUE MODE // 2026.04.01 @ 23:24:06 Player: daxter767676 Result: Destroyed by UK-9KX(R) with Subdweller Laser Performance ------------- Evolutions (0) 0 Regions Visited (2) 400 Robots Destroyed (20) 100 Value Destroyed (395) 395 Prototype IDs (0) 0 Alien Tech Used (0) 0 Bonus (0) 0 TOTAL SCORE: 895 Bonus ------- None Cogmind --------- Core Integrity 0/250 Matter 300/300 Energy 123/125 System Corruption 0% Temperature Cool (6) Movement Rolling (110) Ox2 Location -10/Subcaves Parts ------- > --- POWER (1) -------- Light Ion Engine > --- PROPULSION (2) --- Wheel Wheel > --- UTILITY (2) ------ High-capacity Storage Unit Improved Terrain Scanner > --- WEAPON (2) ------- (None) > --- INVENTORY (20) --- Ion Engine Light Ion Engine Subdweller Power Source Subdweller Monowheel Subdweller Monowheel Huge Storage Unit Subdweller Optics Improved Terrain Scanner Scrap Shield Hacking Suite Small Laser Light Assault Rifle Light Assault Rifle Subdweller Machine Gun Subdweller Machine Gun Grenade Launcher Multitool Peak State ------------ > --- POWER ------------ Light Ion Engine > --- PROPULSION ------- Wheel Wheel > --- UTILITY ---------- High-capacity Storage Unit Improved Terrain Scanner > --- WEAPON ----------- Particle Cannon > --- INVENTORY -------- Ion Engine Light Ion Engine Subdweller Power Source Subdweller Monowheel Subdweller Monowheel Huge Storage Unit Subdweller Optics Improved Terrain Scanner Scrap Shield Hacking Suite Small Laser Light Assault Rifle Light Assault Rifle Subdweller Machine Gun Subdweller Machine Gun Grenade Launcher Multitool [Rating: 12] Favorites ----------- Power Ion Engine Engine Ion Engine Propulsion Wheel Leg Aluminum Leg Wheel Wheel Utility Improved Terrain Scanner Device Improved Terrain Scanner Storage High-capacity Storage Unit Weapon Light Assault Rifle Energy Gun Small Laser Energy Cannon Particle Cannon Ballistic Gun Light Assault Rifle Special Weapon Mining Laser Build | -11 -10 -10 ------- Run | Yrd Mat Sub Slots Evolved . | . . . Power . | . . . Propulsion . | . . . Utility . | . . . Weapon . | . . . Parts Attached 19 | 7 8 4 Power 2 | 1 1 . Engine 2 | 1 1 . Core . | . . . Reactor . | . . . Propulsion 5 | 2 2 1 Treads . | . . . Leg . | . . . Wheel 5 | 2 2 1 Hover . | . . . Flight . | . . . Utility 6 | 4 2 . Device 4 | 4 . . Storage 2 | . 2 . Processor . | . . . Hackware . | . . . Protection . | . . . Artifact . | . . . Weapon 6 | . 3 3 Energy Gun 1 | . 1 . Energy Cannon 1 | . 1 . Ballistic Gun 1 | . . 1 Ballistic Cannon . | . . . Launcher . | . . . Special Weapon 3 | . 1 2 Impact Weapon . | . . . Slashing Weapon . | . . . Piercing Weapon . | . . . Special Melee Weapon . | . . . Unidentified Prototypes . | . . . Parts Lost 7 | . 3 4 Power 1 | . . 1 Propulsion 3 | . 3 . Utility . | . . . Weapon 3 | . . 3 Highest Loss Streak 2 | . 1 2 To Critical Strikes . | . . . Average Backups 9 | 5 7 11 Power 1 | 1 1 1 Propulsion . | 3 . . Utility 2 | . 1 3 Weapon 3 | 1 2 5 Tool/Special . | . . . Unused Backups 20 | 11 1 8 Power 5 | 2 . 3 Propulsion 6 | 5 . 1 Utility 3 | 1 . 2 Weapon 6 | 3 1 2 Tool/Special . | . . . Average Slot Usage (%) 86 | . 90 81 Engine 14 | . 14 14 Wheel 16 | . 18 14 Device 14 | . 15 14 Storage 13 | . 12 14 Energy Gun 4 | . 8 . Energy Cannon 7 | . 2 13 Ballistic Gun 8 | . 14 3 Special Weapon 5 | . 3 7 Peak Build Rating 12 | 9 10 12 Average Rating 9 | 8 9 10 On Entrance 8 | 6 9 10 Avg Prop Armor Cover (%) 10 | 10 . . Naked Turns . | . . . Heaviest Build 88 | 13 88 54 Greatest Support 20 | 20 20 20 Greatest Overweight (x) 8 | 1 8 5 Average Overweight (x) 3 | . 3 4 Largest Inventory Capacity 25 | 8 25 20 Average Capacity 19 | 6 20 20 Most Carried 18 | 8 10 18 Average Carried 9 | 5 7 11 Final Capacity 20 | 5 20 20 Final Carried 18 | 5 9 18 Class Distribution -------------------- 76% | Mutant 23% | Scavenger-Mutant Dominant Class ---------------- Mutant | -10/Materials Mutant | -10/Subcaves Resources | -11 -10 -10 ----------- Run | Yrd Mat Sub Matter Collected 495 | 304 132 59 Remotely . | . . . Salvage Created 632 | 151 400 81 Parts 49 | 14 31 4 Haulers Intercepted . | . . . Recyclers Shooed . | . . . Parts Field Recycled . | . . . Retrieved Matter . | . . . Parts Self-Destructed 10 | . . 10 Prevented . | . . . Parts Restored . | . . . Kills | -11 -10 -10 ------- Run | Yrd Mat Sub Combat Hostiles Destroyed 13 | . 11 2 Guns 9 | . 8 1 Cannons 4 | . 3 1 Classes Destroyed 7 | 2 4 1 Worker 1 | . 1 . Tunneler 4 | 4 . . Recycler 1 | 1 . . Operator 1 | . 1 . Swarmer 5 | . 5 . Grunt 6 | . 6 . Subdweller 2 | . . 2 Best Kill Streak 3 | 2 3 1 Combat Bots Only 3 | . 3 1 Max Kills in Single Turn 1 | 1 1 1 Gunslinging . | . . . Exploded . | . . . Melee . | . . . Uniques/NPCs Destroyed . | . . . Combat | -11 -10 -10 -------- Run | Yrd Mat Sub Hostile Shots Fired 92 | . 74 18 Missed 20 | . 16 4 Hits 72 | . 58 14 Projectile 72 | . 58 14 Damage Taken 842 | . 551 291 Core 250 | . 175 75 Absorbed by Shields . | . . . Core Remaining (%) 100 | 100 . . Volleys Fired 77 | 17 53 7 Largest 2 | 2 2 2 Hottest 168 | 40 100 168 Shots Fired 134 | 34 92 8 Gun 114 | 34 78 2 Cannon 8 | . 6 2 Launcher . | . . . Special 12 | . 8 4 Kinetic 89 | 34 53 2 Thermal 45 | . 39 6 Explosive . | . . . Electromagnetic . | . . . Robot Hit Streak 10 | 8 10 6 Robot Miss Streak 4 | 2 4 . Penetration Max . | . . . Secondary Targets . | . . . Shots Hit Robots 81 | 22 54 5 Core Hits 35 | 9 23 3 Critical Kills 1 | 1 . . Critical Parts Destroyed . | . . . Critical Strikes 1 | 1 . . Destroy 1 | 1 . . Melee Attacks . | . . . Impact . | . . . Slashing . | . . . Piercing . | . . . Sneak Attacks . | . . . Combat Hostiles . | . . . Follow-up Attacks . | . . . Damage Inflicted 833 | 183 553 97 Guns 717 | 183 490 44 Cannons 104 | . 63 41 Explosions . | . . . Melee . | . . . Ramming . | . . . Kinetic 500 | 183 273 44 Thermal 333 | . 280 53 Explosive . | . . . Electromagnetic . | . . . Impact . | . . . Slashing . | . . . Piercing . | . . . Highest Corruption . | . . . Average Corruption . | . . . Corruption Purged . | . . . Corruption Blocked . | . . . Overload Shots . | . . . Overflow Damage . | . . . Projectiles . | . . . Explosions . | . . . Melee . | . . . Knockbacks . | . . . Impact . | . . . Kinetic . | . . . Secondary . | . . . Self-Inflicted Damage . | . . . Shots . | . . . Rammed . | . . . Targets Rammed . | . . . Kicked . | . . . Crushed . | . . . Highest Temperature 148 | . 148 8 Average Temperature 36 | . 37 4 Received Heat Transfer 246 | . 198 48 Siege Activations . | . . . Martial Activations . | . . . Shielding Activations . | . . . Robots Disrupted . | . . . Combat Hostiles . | . . . Robots Corrupted . | . . . Combat Hostiles . | . . . Parts Fried . | . . . Impact Corruptions . | . . . Robots Melted . | . . . Combat Hostiles . | . . . Parts Melted 1 | . 1 . Heat Transferred 765 | . 611 154 Parts Sabotaged . | . . . Parts Stolen . | . . . Parts Stripped . | . . . Power Chain Reactions . | . . . Alert | -11 -10 -10 ------- Run | Yrd Mat Sub Maximum Alert Level . | . . . Low Security (%) 100 | 100 100 . Level 1 . | . . . Level 2 . | . . . Level 3 . | . . . Level 4 . | . . . Level 5 . | . . . High Security . | . . . Max Security . | . . . Peak Influence 77 | 10 77 . Initial 3 | . 3 . Average 23 | 1 27 . Influence Increases 356 | 25 331 . Destroy 0b10 Robot/C 220 | . 220 . Destroy 0b10 Robot/NC 35 | 25 10 . Destroy Leader 30 | . 30 . Successful Hack 21 | . 21 . Select Force Hacks 30 | . 30 . Disable Machine 15 | . 15 . Destroy Structure 5 | . 5 . Influence Decreases 356 | 20 285 51 Entered New Map 27 | . 2 25 Time Decay 273 | 20 227 26 Lost Part 30 | . 30 . Purge Threat 26 | . 26 . Squads Dispatched 3 | . 3 . Investigation 2 | . 2 . Extermination . | . . . Reinforcement 1 | . 1 . Assault . | . . . Garrison . | . . . Intercept . | . . . Searches Triggered . | . . . Construction Impeded . | . . . Haulers Reinforced . | . . . Active Scanning Responses . | . . . Cargo Convoy Interrupts . | . . . Stealth | -11 -10 -10 --------- Run | Yrd Mat Sub Distress Signals 1 | . 1 . Communications Jammed . | . . . Distress Signals . | . . . Times Spotted 22 | . 18 4 Peak Tracking Total 5 | . 5 2 Tactical Retreats . | . . . Traps | -11 -10 -10 ------- Run | Yrd Mat Sub Traps Triggered 1 | . 1 . Indirectly . | . . . Trap Hack Attempts . | . . . Triggered . | . . . Disarmed . | . . . Reprogrammed . | . . . Reused . | . . . Traps Extracted . | . . . Installed . | . . . Triggered . | . . . Machines | -11 -10 -10 ---------- Run | Yrd Mat Sub Machines Disabled 1 | . 1 . Max in Single Turn 1 | . 1 . Machines Repaired . | . . . Machines Dismantled . | . . . Machines Sabotaged . | . . . Overloaded Fab Kills . | . . . Hacking | -11 -10 -10 --------- Run | Yrd Mat Sub Machines Accessed 7 | . 7 . Terminals 6 | . 6 . Fabricators . | . . . Repair Stations . | . . . Recycling Units 1 | . 1 . Scanalyzers . | . . . Garrison Access . | . . . Total Hacks 22 | . 22 . Successful 9 | . 9 . Failed 13 | . 13 . Catastrophic . | . . . Database Lockouts . | . . . Manual 22 | . 22 . Terminals 21 | . 21 . Fabricators . | . . . Repair Stations . | . . . Recycling Units 1 | . 1 . Scanalyzers . | . . . Garrison Access . | . . . Terminal Hacks 1 | . 1 . Unreport Threat 1 | . 1 . Fabricator Hacks . | . . . Repair Station Hacks . | . . . Recycling Unit Hacks . | . . . Scanalyzer . | . . . Garrison Access Hacks . | . . . Unauthorized Hacks 8 | . 8 . Terminals 7 | . 7 . Track 1 | . 1 . Botnet 1 | . 1 . Skim 5 | . 5 . Fabricators . | . . . Repair Stations . | . . . Recycling Units 1 | . 1 . Tunnel 1 | . 1 . Scanalyzers . | . . . Garrison Access . | . . . Data Cores Recovered 1 | . 1 . Used 1 | . 1 . Hacking Detections 5 | . 5 . Full Trace Events . | . . . Feedback Events . | . . . Feedback Blocked . | . . . Robot Schematics Acquired . | . . . Robots Built . | . . . Authchips . | . . . Time . | . . . Total Robot Build Rating . | . . . Part Schematics Acquired . | . . . Parts Built . | . . . Authchips . | . . . Time . | . . . Total Part Build Rating . | . . . Part Studies Acquired . | . . . Parts Repaired . | . . . Time . | . . . Parts Recycled . | . . . Recycled Matter . | . . . Retrieved Matter . | . . . Retrieved Components . | . . . Parts Scanalyzed . | . . . Part Schematics Acquired . | . . . Parts Damaged . | . . . Bothacking | -11 -10 -10 ------------ Run | Yrd Mat Sub Used RIF Installer . | . . . Robots Hacked . | . . . Non-combat . | . . . Combat . | . . . Robot Hacks Applied . | . . . Relay Couplers Released . | . . . Fabnet Peak Effective % . | . . . Robots Rewired . | . . . Allies Hacked . | . . . Hacks Repelled . | . . . Allies | -11 -10 -10 -------- Run | Yrd Mat Sub Total Allies . | . . . Largest Group . | . . . Highest-Rated Group . | . . . Highest-Rated Ally . | . . . Total Orders . | . . . Ally Attacks . | . . . Total Damage . | . . . Kills . | . . . Allies Corrupted . | . . . Allies Melted . | . . . Intel | -11 -10 -10 ------- Run | Yrd Mat Sub Active Infowar (turns) 1347 | 81 650 616 Terrain 1347 | 81 650 616 Seismic 91 | 49 42 . Robot Analysis Total . | . . . Derelict Logs Recovered . | . . . Drone Launches . | . . . Drone Recoveries . | . . . Exploration | -11 -10 -10 ------------- Run | Yrd Mat Sub Turns Passed 1382 | 116 650 616 Spaces Moved 774 | 61 334 379 Core . | . . . Treads . | . . . Legs 11 | 11 . . Wheels 763 | 50 334 379 Hover . | . . . Flight . | . . . Fastest Speed 80 | 80 80 110 Average Speed 137 | 89 133 148 Slowest Speed 200 | 120 200 155 Overloaded Moves . | . . . Propulsion Burnouts . | . . . Robots Hopped . | . . . Potential Cave-ins . | . . . Cave-ins Triggered . | . . . Exploration Rate (%) 30 | 3 59 29 Regions Visited 2 Branch Regions 1 Pre-discovered Areas 2 | . 1 1 Known Exits Taken 1 | . 1 . Unknown Exits Taken 1 | 1 . . Scrap Searched 1 | . . 1 Spaces Dug 5 | . 5 . Terrain Destroyed 5 | . 5 . Melee . | . . . Projectile 5 | . 5 . AOE . | . . . Terrain Rammed . | . . . Walls Destroyed . | . . . Machines Disabled . | . . . Actions | -11 -10 -10 --------- Run | Yrd Mat Sub Total 950 | 95 440 415 Wait 48 | . 35 13 Move 772 | 60 333 379 Hop . | . . . Pick Up 16 | 3 5 8 Fast Attach 10 | 4 3 3 Attach 2 | . 1 1 Detach 4 | 2 1 1 Swap 11 | 3 6 2 Drop 9 | 6 3 . Fire 77 | 17 53 7 Melee . | . . . Ram . | . . . Kick . | . . . Crush . | . . . Escape Stasis . | . . . Rewire 1 | . . 1 Trap . | . . . Miscellaneous . | . . . Route ------- -11/Scrapyard -10/Materials (discovered 6 exits: *Mat x3 / *Min x2 / *Sub) -10/Subcaves History --------- Turn | Location | Event 17 | -11/Scrapyard | Discovered new exit (range 3) 117 | -11/Scrapyard | Entered Materials 151 | -10/Materials | Discovered new exit (range 9) 415 | -10/Materials | Core integrity fell below 50% 503 | -10/Materials | Discovered new exit (range 5) 634 | -10/Materials | Build established: Mutant 650 | -10/Materials | Discovered new exit (range 10) 666 | -10/Materials | Identified exit to Subcaves 666 | -10/Materials | Identified exit to Mines 666 | -10/Materials | Identified exit to Materials 719 | -10/Materials | Learned 2 Mines zone layouts 760 | -10/Materials | Learned location of 2 exits from Mines 767 | -10/Materials | Entered Subcaves 790 | -10/Subcaves | Shifting Twisted Machinery released Flamer 830 | -10/Subcaves | Shifting Twisted Machinery released Sub. Shrapnel Launcher 847 | -10/Subcaves | Learned location of Zion (-7) 847 | -10/Subcaves | Met a Zionite searching for "candidates" 888 | -10/Subcaves | Disturbed a concealed Subdweller 1088 | -10/Subcaves | A swath of the cavern ceiling suddenly collapsed 1173 | -10/Subcaves | Core integrity fell below 20% 1372 | -10/Subcaves | Ambushed by Subdwellers from Twisted Machinery 1383 | -10/Subcaves | Destroyed by UK-9KX(R) with Subdweller Laser Last Messages --------------- 01204_ Ion Engine destroyed. 01224_ Flamer destroyed. 01227_ OG-Z54(R) destroyed. 01229_ Acquired 20 matter. 01232_ Acquired Sub. Monowheel. 01235_ Acquired Sub. Machine Gun. 01311_ Acquired Sub. Power Source. 01326_ Subatomizers dissect the Disposable Heat Sink. 01339_ Subatomizers dissect the Lgt. Ion Engine. 01354_ Acquired Lgt. Ion Engine. 01356_ Acquired Wheel. 01364_ Acquired Scrap Shield. 01365_ Subatomizers dissect the Sub. Monowheel. 01366_ Acquired Sub. Monowheel. 01372_ K4-ST6(R) emerges from the Twisted Machinery. 01374_ Acquired 10 matter. 01379_ Particle Cannon destroyed. Map ----- +----------------------------------------------------+ | ????????????????????????????????????????### ##?? | | ?????????????????????????#?????????#?####?## ##? | | ?????????????????????????????????????# #### #? | | ?????????????????????????????#????#??# ## ## | | ??????????????????????????????????##### ## " | | ???????????????????????????????????# ## ### | | ??????????????????????????????????## # ##?## | | ?????????????????????????????????## # #??#### | | ?????????????????????????????#???# #### ## | | ????????????????????#??????????#### | | ????????????????????????????????#?# | | ???????????? ????????????#????????# #### ###### # | | ??????????# ????????????#????????###??###????#### | | ?????????? ?????????#????#?????????#???????### | | ??????????# ?????????#???????????###?######### | | ?????????## ?????????#??????????## ### # | | ?????????? ?????????????????????# # | | ?????????## ??????####??????????## # | | ?????????? ##???##""##?????##### # # ## ## | | ??????????# ##??# " #????## #### #? | | ????????### """#??# #????# # # #? | | ??????### """" #??# #???## ##? | | ??????#" """ ####" ##??# ##?? | | ????# """ ##" " #### % # # #??? | | ?????"""" R " %## ## # ##??? | | ?????"###" R %% @ ## # ??? | | ????????# # ## ?# | | ????????# ### #### ? ? | | ????????## #?## ##?? ?? ?? | | ?????????## ## ### #??## ##??? ? ???# | | ????????#############?### ##???####???????##????? | | ????????????????????????####?????????#???????????? | | ?????????????????????????????????#???????????????? | | ?????????????????????????????????????????????????? | | ?????????????????????#???????????????????????????? | | ??????????????????#????#?????????????????????????? | | ??????????????????????????????????#??????????????? | | ??????????????#??????????????????????????????????? | | ?????????????????????????????????????????????????? | | ???????????????????????#?????????????????????????? | | ?????????????????????????????????????????????????? | | ?????????????????????????????????????????????????? | | ?????????????????????????????????????????????????? | | ?????????????????????????????????????????????????? | | ?????????????????????????????????????????????????? | | ?????????????????????????????????????????????????? | | | | | | | | | +----------------------------------------------------+ Best States ------------- Heat Dissipation 25 Energy Generation 10 Energy Capacity 250 Matter Stores 300 Matter Capacity 300 Sight Range 16 Terrain Scan Range 16 Terrain Scan Density 10 Evasion (%) 50 Item Schematics ----------------- None Robot Schematics ------------------ None Fabricated ------------ Nothing Repaired ---------- Nothing Studied --------- None Alien Tech Used ----------------- None Achievements -------------- None Challenges ------------ None Game ------ Seed HeartFireArray Manual? 0 Play Time 00:13:47 Cumulative 167.3 hours Start 2026.04.01 @ 23:10:30 End 2026.04.01 @ 23:24:06 Sessions 1 Manual Loads 0 Difficulty Rogue Special Mode None Game No. 181 Rogue 179 Adventurer 2 Explorer 0 Win Type - Total 0 Types 0/0/0/0/0/0/0/0/0/0 Lore% 67 Gallery% 56 Achievement% 35 Wizard Run 0 Options --------- Layout 2 ASCII 0 Keyboard 1 Movement Numpad Keybinds 0 Fullscreen 1 Font 24/Smallcaps Map View 50x44 Zoom Use 0% Tactical HUD 1 Map Filters NONE Filters NONE Steam SD RUN: 2c9c71a9-daaa-463b-8fb8-eedfcb5150a9